[Event "Titled Tuesday Blitz April 19 Early 2022"]
[White "Soucek, Petr"]
[Black "Zhurikhin, Alexander"]
[WhiteFideId "23715170"]
[BlackFideId "4139569"]
[WhiteElo "1979"]
[BlackElo "2204"]
[Result "1-0"]
[Round "01"]
[TimeControl "180+1"]
[Date "2022.04.19"]
[WhiteClock "0:00:22"]
[BlackClock "0:00:19"]

1. e4 {[%clk 0:02:58]}  c5 {[%clk 0:02:59]} 2. Nf3 {[%clk 0:02:57]}  d6 {[%clk 0:02:59]} 3. d4 {[%clk 0:02:56]}  cxd4 {[%clk 0:03:00]} 4. Qxd4 {[%clk 0:02:55]}  a6 {[%clk 0:02:58]} 5. Be2 {[%clk 0:02:51]}  Nc6 {[%clk 0:02:57]} 6. Qe3 {[%clk 0:02:51]}  Nf6 {[%clk 0:02:55]} 7. O-O {[%clk 0:02:50]}  e6 {[%clk 0:02:54]} 8. Rd1 {[%clk 0:02:49]}  Be7 {[%clk 0:02:54]} 9. c4 {[%clk 0:02:49]}  Qc7 {[%clk 0:02:54]} 10. Nc3 {[%clk 0:02:48]}  O-O {[%clk 0:02:53]} 11. b3 {[%clk 0:02:48]}  b6 {[%clk 0:02:46]} 12. Ba3 {[%clk 0:02:47]}  Bb7 {[%clk 0:02:37]} 13. Rac1 {[%clk 0:02:46]}  Rfd8 {[%clk 0:02:30]} 14. Nd5 {[%clk 0:02:44]}  exd5 {[%clk 0:02:28]} 15. cxd5 {[%clk 0:02:44]}  Ng4 {[%clk 0:02:05]} 16. Qf4 {[%clk 0:02:28]}  Nge5 {[%clk 0:02:04]} 17. dxc6 {[%clk 0:02:20]}  Bxc6 {[%clk 0:02:04]} 18. Nd4 {[%clk 0:02:18]}  Qb7 {[%clk 0:02:00]} 19. Nf5 {[%clk 0:01:55]}  Bf8 {[%clk 0:01:54]} 20. Nxd6 {[%clk 0:01:44]}  Bxd6 {[%clk 0:01:52]} 21. Bxd6 {[%clk 0:01:41]}  Ng6 {[%clk 0:01:52]} 22. Qg3 {[%clk 0:01:34]}  Bb5 {[%clk 0:01:38]} 23. Bf3 {[%clk 0:01:24]}  Rac8 {[%clk 0:01:36]} 24. e5 {[%clk 0:01:18]}  Qd7 {[%clk 0:01:33]} 25. Bg4 {[%clk 0:01:12]}  Rxc1 {[%clk 0:01:29]} 26. Rxc1 {[%clk 0:01:11]}  Qe8 {[%clk 0:01:29]} 27. h4 {[%clk 0:01:10]}  Bd7 {[%clk 0:01:18]} 28. Bf3 {[%clk 0:01:07]}  h6 {[%clk 0:01:13]} 29. h5 {[%clk 0:01:07]}  Nf8 {[%clk 0:01:13]} 30. Rc7 {[%clk 0:00:59]}  Ne6 {[%clk 0:01:10]} 31. Rb7 {[%clk 0:00:58]}  Bc6 {[%clk 0:01:09]} 32. Rxb6 {[%clk 0:00:57]}  Bxf3 {[%clk 0:01:09]} 33. Qxf3 {[%clk 0:00:58]}  Rc8 {[%clk 0:01:00]} 34. Rxa6 {[%clk 0:00:56]}  Nd4 {[%clk 0:00:55]} 35. Qd5 {[%clk 0:00:51]}  Ne2+ {[%clk 0:00:52]} 36. Kh2 {[%clk 0:00:50]}  Nf4 {[%clk 0:00:52]} 37. Qf3 {[%clk 0:00:44]}  Ne6 {[%clk 0:00:51]} 38. Ra7 {[%clk 0:00:44]}  Ng5 {[%clk 0:00:50]} 39. Qf5 {[%clk 0:00:42]}  Ra8 {[%clk 0:00:41]} 40. Re7 {[%clk 0:00:32]}  Qc8 {[%clk 0:00:38]} 41. Qxc8+ {[%clk 0:00:32]}  Rxc8 {[%clk 0:00:39]} 42. a4 {[%clk 0:00:32]}  Rc2 {[%clk 0:00:38]} 43. a5 {[%clk 0:00:29]}  Rxf2 {[%clk 0:00:38]} 44. a6 {[%clk 0:00:29]}  Ra2 {[%clk 0:00:37]} 45. a7 {[%clk 0:00:29]}  Kh7 {[%clk 0:00:37]} 46. Bc5 {[%clk 0:00:27]}  Ne4 {[%clk 0:00:34]} 47. Bb6 {[%clk 0:00:27]}  Nd2 {[%clk 0:00:29]} 48. Re8 {[%clk 0:00:26]}  Nf3+ {[%clk 0:00:29]} 49. Kg3 {[%clk 0:00:26]}  Nxe5 {[%clk 0:00:25]} 50. Rxe5 {[%clk 0:00:26]}  Ra3 {[%clk 0:00:26]} 51. Rb5 {[%clk 0:00:21]}  g5 {[%clk 0:00:25]} 52. hxg6+ {[%clk 0:00:20]}  fxg6 {[%clk 0:00:25]} 53. Bd4 {[%clk 0:00:21]}  g5 {[%clk 0:00:24]} 54. Rb7+ {[%clk 0:00:21]}  Kg6 {[%clk 0:00:24]} 55. Rb8 {[%clk 0:00:22]}  h5 {[%clk 0:00:22]} 56. a8=Q {[%clk 0:00:22]}  h4+ {[%clk 0:00:23]} 57. Kg4 {[%clk 0:00:21]}  Rxa8 {[%clk 0:00:19]} 58. Rxa8 {[%clk 0:00:22]}  h3 {[%clk 0:00:19]} 59. Ra6+ {[%clk 0:00:22]} 1-0


[Site "https://www.chess.com"]

[Event "Titled Tuesday Blitz April 19 Early 2022"]
[White "Stelmaszyk, Nico"]
[Black "Agibileg, Uurtsaikh"]
[WhiteFideId "16200462"]
[BlackFideId "4901606"]
[WhiteElo "2119"]
[BlackElo "2205"]
[Result "0-1"]
[Round "01"]
[TimeControl "180+1"]
[Date "2022.04.19"]
[WhiteClock "0:01:23"]
[BlackClock "0:00:50"]

1. e4 {[%clk 0:02:56]}  c5 {[%clk 0:02:59]} 2. Nf3 {[%clk 0:02:56]}  e6 {[%clk 0:02:59]} 3. c3 {[%clk 0:02:54]}  Nf6 {[%clk 0:02:58]} 4. e5 {[%clk 0:02:54]}  Nd5 {[%clk 0:02:58]} 5. d4 {[%clk 0:02:54]}  cxd4 {[%clk 0:02:59]} 6. cxd4 {[%clk 0:02:55]}  d6 {[%clk 0:02:59]} 7. Bc4 {[%clk 0:02:55]}  Be7 {[%clk 0:02:59]} 8. O-O {[%clk 0:02:55]}  O-O {[%clk 0:02:58]} 9. Qe2 {[%clk 0:02:56]}  Nd7 {[%clk 0:02:52]} 10. Bxd5 {[%clk 0:02:41]}  exd5 {[%clk 0:02:52]} 11. Nc3 {[%clk 0:02:41]}  dxe5 {[%clk 0:02:47]} 12. Nxe5 {[%clk 0:02:41]}  Nf6 {[%clk 0:02:42]} 13. Bg5 {[%clk 0:02:39]}  Be6 {[%clk 0:02:43]} 14. Rfe1 {[%clk 0:02:38]}  h6 {[%clk 0:02:40]} 15. Bh4 {[%clk 0:02:38]}  Re8 {[%clk 0:02:30]} 16. Rac1 {[%clk 0:02:31]}  Rc8 {[%clk 0:02:29]} 17. Qb5 {[%clk 0:02:28]}  Qb6 {[%clk 0:01:55]} 18. Qxb6 {[%clk 0:02:27]}  axb6 {[%clk 0:01:56]} 19. Nb5 {[%clk 0:02:19]}  g5 {[%clk 0:01:48]} 20. Bg3 {[%clk 0:02:14]}  Bb4 {[%clk 0:01:44]} 21. Red1 {[%clk 0:02:07]}  Bd2 {[%clk 0:01:30]} 22. Rb1 {[%clk 0:02:02]}  Bf5 {[%clk 0:01:14]} 23. Ra1 {[%clk 0:02:00]}  Bb4 {[%clk 0:01:12]} 24. a3 {[%clk 0:01:59]}  Bf8 {[%clk 0:01:11]} 25. f3 {[%clk 0:01:59]}  Rc2 {[%clk 0:01:09]} 26. Rac1 {[%clk 0:01:55]}  Rec8 {[%clk 0:01:08]} 27. Rxc2 {[%clk 0:01:49]}  Rxc2 {[%clk 0:01:09]} 28. b4 {[%clk 0:01:50]}  Nh5 {[%clk 0:01:03]} 29. Be1 {[%clk 0:01:43]}  Nf4 {[%clk 0:00:55]} 30. Rd2 {[%clk 0:01:44]}  Rc1 {[%clk 0:00:54]} 31. Kf1 {[%clk 0:01:41]}  f6 {[%clk 0:00:54]} 32. Ng4 {[%clk 0:01:27]}  Bd3+ {[%clk 0:00:52]} 33. Kf2 {[%clk 0:01:25]}  Bxb5 {[%clk 0:00:51]} 34. Nxf6+ {[%clk 0:01:23]}  Kf7 {[%clk 0:00:50]} 0-1


[Site "https://www.chess.com"]

[Event "Titled Tuesday Blitz April 19 Early 2022"]
[White "Suarez Uriel, Adrian"]
[Black "Shipov, Sergei"]
[WhiteFideId "22230874"]
[BlackFideId "4113624"]
[WhiteElo "2316"]
[BlackElo "2795"]
[Result "0-1"]
[Round "01"]
[TimeControl "180+1"]
[Date "2022.04.19"]
[WhiteClock "0:00:09"]
[BlackClock "0:00:04"]

1. e4 {[%clk 0:02:59]}  c5 {[%clk 0:02:51]} 2. Ne2 {[%clk 0:02:58]}  d6 {[%clk 0:02:48]} 3. g3 {[%clk 0:02:55]}  Nc6 {[%clk 0:02:43]} 4. Bg2 {[%clk 0:02:53]}  g6 {[%clk 0:02:43]} 5. c3 {[%clk 0:02:52]}  Bg7 {[%clk 0:02:40]} 6. d4 {[%clk 0:02:52]}  e5 {[%clk 0:02:21]} 7. Be3 {[%clk 0:02:41]}  Qb6 {[%clk 0:01:59]} 8. d5 {[%clk 0:02:34]}  Nb8 {[%clk 0:01:48]} 9. b4 {[%clk 0:02:23]}  Nd7 {[%clk 0:01:47]} 10. O-O {[%clk 0:02:20]}  Qc7 {[%clk 0:01:47]} 11. Nd2 {[%clk 0:02:18]}  Ngf6 {[%clk 0:01:45]} 12. h3 {[%clk 0:02:17]}  O-O {[%clk 0:01:44]} 13. a4 {[%clk 0:02:16]}  a5 {[%clk 0:01:24]} 14. Rc1 {[%clk 0:01:51]}  Nb6 {[%clk 0:00:53]} 15. Nb3 {[%clk 0:01:27]}  axb4 {[%clk 0:00:44]} 16. cxb4 {[%clk 0:01:26]}  Nxa4 {[%clk 0:00:45]} 17. bxc5 {[%clk 0:01:26]}  dxc5 {[%clk 0:00:32]} 18. Nxc5 {[%clk 0:01:27]}  Nxc5 {[%clk 0:00:31]} 19. Rxc5 {[%clk 0:01:27]}  Qd8 {[%clk 0:00:28]} 20. Qb3 {[%clk 0:01:26]}  Ne8 {[%clk 0:00:24]} 21. Nc3 {[%clk 0:01:20]}  Nd6 {[%clk 0:00:22]} 22. Nb5 {[%clk 0:01:15]}  Nxb5 {[%clk 0:00:20]} 23. Rxb5 {[%clk 0:01:15]}  Kh8 {[%clk 0:00:17]} 24. Rc1 {[%clk 0:01:14]}  f5 {[%clk 0:00:17]} 25. f3 {[%clk 0:01:14]}  f4 {[%clk 0:00:17]} 26. gxf4 {[%clk 0:01:10]}  exf4 {[%clk 0:00:17]} 27. Bc5 {[%clk 0:01:10]}  Re8 {[%clk 0:00:16]} 28. Bf2 {[%clk 0:01:01]}  Qg5 {[%clk 0:00:16]} 29. h4 {[%clk 0:01:01]}  Qf6 {[%clk 0:00:16]} 30. Rbc5 {[%clk 0:00:56]}  g5 {[%clk 0:00:15]} 31. h5 {[%clk 0:00:54]}  g4 {[%clk 0:00:15]} 32. R5c4 {[%clk 0:00:36]}  g3 {[%clk 0:00:14]} 33. Bd4 {[%clk 0:00:34]}  Qxd4+ {[%clk 0:00:14]} 34. Rxd4 {[%clk 0:00:34]}  Bxd4+ {[%clk 0:00:15]} 35. Kf1 {[%clk 0:00:34]}  Be5 {[%clk 0:00:15]} 36. Qb6 {[%clk 0:00:26]}  Bd7 {[%clk 0:00:13]} 37. Rc7 {[%clk 0:00:19]}  Ra1+ {[%clk 0:00:10]} 38. Ke2 {[%clk 0:00:19]}  Ra2+ {[%clk 0:00:11]} 39. Kd3 {[%clk 0:00:19]}  Ba4 {[%clk 0:00:09]} 40. Qxb7 {[%clk 0:00:14]}  Kg8 {[%clk 0:00:07]} 41. Rc8 {[%clk 0:00:13]}  Bb5+ {[%clk 0:00:05]} 42. Qxb5 {[%clk 0:00:11]}  Rxc8 {[%clk 0:00:05]} 43. Qb4 {[%clk 0:00:08]}  Rc3+ {[%clk 0:00:02]} 44. Qxc3 {[%clk 0:00:08]}  Bxc3 {[%clk 0:00:03]} 45. Kxc3 {[%clk 0:00:08]}  Rxg2 {[%clk 0:00:03]} 46. Kd4 {[%clk 0:00:09]}  Kf7 {[%clk 0:00:04]} 0-1


[Site "https://www.chess.com"]

[Event "Titled Tuesday Blitz April 19 Early 2022"]
[White "Subaste, Arman"]
[Black "Hua, Lefong"]
[WhiteFideId "5221080"]
[BlackFideId "2602253"]
[WhiteElo "1856"]
[BlackElo "2581"]
[Result "0-1"]
[Round "01"]
[TimeControl "180+1"]
[Date "2022.04.19"]
[WhiteClock "0:00:19"]
[BlackClock "0:00:21"]

1. d4 {[%clk 0:03:00]}  Nf6 {[%clk 0:03:00]} 2. Nf3 {[%clk 0:02:59]}  g6 {[%clk 0:03:00]} 3. c4 {[%clk 0:02:57]}  Bg7 {[%clk 0:03:00]} 4. Nc3 {[%clk 0:02:58]}  O-O {[%clk 0:03:01]} 5. g3 {[%clk 0:02:57]}  d6 {[%clk 0:03:01]} 6. Bg2 {[%clk 0:02:58]}  Nc6 {[%clk 0:03:01]} 7. O-O {[%clk 0:02:58]}  a6 {[%clk 0:03:02]} 8. h3 {[%clk 0:02:57]}  Rb8 {[%clk 0:03:01]} 9. a4 {[%clk 0:02:56]}  a5 {[%clk 0:02:59]} 10. e3 {[%clk 0:02:55]}  e5 {[%clk 0:02:58]} 11. b3 {[%clk 0:02:55]}  Re8 {[%clk 0:02:46]} 12. Bb2 {[%clk 0:02:54]}  h5 {[%clk 0:02:35]} 13. Rc1 {[%clk 0:02:52]}  e4 {[%clk 0:02:28]} 14. Ng5 {[%clk 0:02:34]}  Bf5 {[%clk 0:02:25]} 15. Ba3 {[%clk 0:02:01]}  Nb4 {[%clk 0:02:15]} 16. Bxb4 {[%clk 0:02:00]}  axb4 {[%clk 0:02:16]} 17. Na2 {[%clk 0:01:51]}  Nd7 {[%clk 0:02:00]} 18. h4 {[%clk 0:01:46]}  c5 {[%clk 0:01:43]} 19. dxc5 {[%clk 0:01:20]}  dxc5 {[%clk 0:01:43]} 20. Qc2 {[%clk 0:01:20]}  Qe7 {[%clk 0:01:33]} 21. Rcd1 {[%clk 0:01:20]}  Bh6 {[%clk 0:01:11]} 22. Nh3 {[%clk 0:01:17]}  Ne5 {[%clk 0:01:11]} 23. Nc1 {[%clk 0:01:12]}  Nd3 {[%clk 0:00:59]} 24. Ne2 {[%clk 0:01:02]}  Rbd8 {[%clk 0:00:53]} 25. Kh2 {[%clk 0:00:40]}  Rd7 {[%clk 0:00:45]} 26. Nhf4 {[%clk 0:00:35]}  Red8 {[%clk 0:00:43]} 27. Nd5 {[%clk 0:00:34]}  Rxd5 {[%clk 0:00:39]} 28. cxd5 {[%clk 0:00:34]}  Rxd5 {[%clk 0:00:40]} 29. Qc4 {[%clk 0:00:32]}  Rd8 {[%clk 0:00:38]} 30. Nc1 {[%clk 0:00:31]}  Bg7 {[%clk 0:00:35]} 31. Nxd3 {[%clk 0:00:30]}  exd3 {[%clk 0:00:33]} 32. e4 {[%clk 0:00:30]}  Be6 {[%clk 0:00:32]} 33. Qb5 {[%clk 0:00:29]}  d2 {[%clk 0:00:29]} 34. Qe2 {[%clk 0:00:26]}  Bc3 {[%clk 0:00:29]} 35. Rb1 {[%clk 0:00:26]}  Rd4 {[%clk 0:00:25]} 36. Rfd1 {[%clk 0:00:26]}  c4 {[%clk 0:00:25]} 37. bxc4 {[%clk 0:00:25]}  Bxc4 {[%clk 0:00:26]} 38. Qe3 {[%clk 0:00:25]}  Rd3 {[%clk 0:00:20]} 39. Qf4 {[%clk 0:00:22]}  Ba2 {[%clk 0:00:20]} 40. Ra1 {[%clk 0:00:18]}  Bxa1 {[%clk 0:00:20]} 41. Rxa1 {[%clk 0:00:19]}  d1=R {[%clk 0:00:20]} 42. Rxd1 {[%clk 0:00:19]}  Rxd1 {[%clk 0:00:21]} 0-1


[Site "https://www.chess.com"]

[Event "Titled Tuesday Blitz April 19 Early 2022"]
[White "Svane, Frederik"]
[Black "Jegorovas, Aleksandras"]
[WhiteFideId "12923044"]
[BlackFideId "12801950"]
[WhiteElo "2459"]
[BlackElo "2247"]
[Result "1-0"]
[Round "01"]
[TimeControl "180+1"]
[Date "2022.04.19"]
[WhiteClock "0:00:58"]
[BlackClock "0:01:08"]

1. c4 {[%clk 0:02:28]}  Nf6 {[%clk 0:02:57]} 2. Nf3 {[%clk 0:02:26]}  e6 {[%clk 0:02:56]} 3. e3 {[%clk 0:02:22]}  c5 {[%clk 0:02:54]} 4. Nc3 {[%clk 0:02:21]}  b6 {[%clk 0:02:52]} 5. d4 {[%clk 0:02:13]}  cxd4 {[%clk 0:02:50]} 6. exd4 {[%clk 0:02:14]}  Bb7 {[%clk 0:02:50]} 7. Bd3 {[%clk 0:02:14]}  Bb4 {[%clk 0:02:50]} 8. O-O {[%clk 0:02:13]}  O-O {[%clk 0:02:50]} 9. Bg5 {[%clk 0:02:13]}  h6 {[%clk 0:02:44]} 10. Bh4 {[%clk 0:02:04]}  Be7 {[%clk 0:02:28]} 11. Bc2 {[%clk 0:01:57]}  d5 {[%clk 0:02:11]} 12. cxd5 {[%clk 0:01:53]}  Nxd5 {[%clk 0:02:08]} 13. Qd3 {[%clk 0:01:50]}  g6 {[%clk 0:02:04]} 14. Bxe7 {[%clk 0:01:50]}  Qxe7 {[%clk 0:02:02]} 15. Bb3 {[%clk 0:01:41]}  Nxc3 {[%clk 0:01:44]} 16. bxc3 {[%clk 0:01:42]}  Nc6 {[%clk 0:01:42]} 17. Rfe1 {[%clk 0:01:42]}  Qf6 {[%clk 0:01:40]} 18. Re3 {[%clk 0:01:28]}  Rfd8 {[%clk 0:01:37]} 19. Rae1 {[%clk 0:01:28]}  Rac8 {[%clk 0:01:26]} 20. Rxe6 {[%clk 0:01:11]}  fxe6 {[%clk 0:01:25]} 21. Rxe6 {[%clk 0:01:11]}  Qxe6 {[%clk 0:01:08]} 22. Qxg6+ {[%clk 0:00:58]} 1-0


[Site "https://www.chess.com"]

[Event "Titled Tuesday Blitz April 19 Early 2022"]
[White "Swicarz, Maciej"]
[Black "Kobo, Ori"]
[WhiteFideId "1113585"]
[BlackFideId "2812320"]
[WhiteElo "2057"]
[BlackElo "2420"]
[Result "0-1"]
[Round "01"]
[TimeControl "180+1"]
[Date "2022.04.19"]
[WhiteClock "0:00:03"]
[BlackClock "0:00:21"]

1. e4 {[%clk 0:02:58]}  e6 {[%clk 0:02:59]} 2. d4 {[%clk 0:02:57]}  d5 {[%clk 0:03:00]} 3. Nd2 {[%clk 0:02:57]}  c5 {[%clk 0:02:58]} 4. exd5 {[%clk 0:02:54]}  Qxd5 {[%clk 0:02:59]} 5. Ngf3 {[%clk 0:02:53]}  cxd4 {[%clk 0:02:59]} 6. Bc4 {[%clk 0:02:51]}  Qd7 {[%clk 0:03:00]} 7. Nb3 {[%clk 0:02:50]}  Nc6 {[%clk 0:02:58]} 8. Nbxd4 {[%clk 0:02:48]}  Nxd4 {[%clk 0:02:51]} 9. Qxd4 {[%clk 0:02:47]}  Qxd4 {[%clk 0:02:46]} 10. Nxd4 {[%clk 0:02:48]}  a6 {[%clk 0:02:46]} 11. Be3 {[%clk 0:02:44]}  Bd7 {[%clk 0:02:44]} 12. O-O-O {[%clk 0:02:43]}  Nf6 {[%clk 0:02:44]} 13. Rhe1 {[%clk 0:02:38]}  Ng4 {[%clk 0:02:39]} 14. h3 {[%clk 0:02:24]}  Nxe3 {[%clk 0:02:39]} 15. Rxe3 {[%clk 0:02:25]}  Be7 {[%clk 0:02:34]} 16. f4 {[%clk 0:01:50]}  g6 {[%clk 0:02:26]} 17. Nf3 {[%clk 0:01:38]}  Bc6 {[%clk 0:01:47]} 18. g4 {[%clk 0:01:36]}  Bc5 {[%clk 0:01:45]} 19. Rb3 {[%clk 0:01:29]}  b5 {[%clk 0:01:24]} 20. Be2 {[%clk 0:01:25]}  Rc8 {[%clk 0:01:16]} 21. Ne5 {[%clk 0:01:18]}  Bd5 {[%clk 0:01:12]} 22. Rc3 {[%clk 0:01:10]}  f6 {[%clk 0:01:03]} 23. Nf3 {[%clk 0:00:56]}  Ke7 {[%clk 0:01:02]} 24. a3 {[%clk 0:00:41]}  Bd6 {[%clk 0:00:59]} 25. Rxc8 {[%clk 0:00:17]}  Bxf4+ {[%clk 0:00:58]} 26. Kb1 {[%clk 0:00:18]}  Rxc8 {[%clk 0:00:58]} 27. Nd4 {[%clk 0:00:17]}  Be4 {[%clk 0:00:49]} 28. Bd3 {[%clk 0:00:15]}  Bxd3 {[%clk 0:00:49]} 29. Rxd3 {[%clk 0:00:16]}  e5 {[%clk 0:00:45]} 30. Nb3 {[%clk 0:00:14]}  f5 {[%clk 0:00:42]} 31. gxf5 {[%clk 0:00:14]}  gxf5 {[%clk 0:00:43]} 32. Rf3 {[%clk 0:00:13]}  Kf6 {[%clk 0:00:38]} 33. Rf1 {[%clk 0:00:11]}  Bg5 {[%clk 0:00:34]} 34. Nc1 {[%clk 0:00:06]}  e4 {[%clk 0:00:33]} 35. Ne2 {[%clk 0:00:05]}  Ke5 {[%clk 0:00:32]} 36. Rg1 {[%clk 0:00:05]}  h6 {[%clk 0:00:32]} 37. Rf1 {[%clk 0:00:05]}  f4 {[%clk 0:00:32]} 38. c3 {[%clk 0:00:05]}  f3 {[%clk 0:00:28]} 39. Nd4 {[%clk 0:00:04]}  Rf8 {[%clk 0:00:26]} 40. Kc2 {[%clk 0:00:04]}  f2 {[%clk 0:00:22]} 41. Kd1 {[%clk 0:00:04]}  e3 {[%clk 0:00:22]} 42. Ke2 {[%clk 0:00:04]}  Ke4 {[%clk 0:00:22]} 43. Nc2 {[%clk 0:00:03]}  Rd8 {[%clk 0:00:22]} 44. Nd4 {[%clk 0:00:03]}  Bf6 {[%clk 0:00:22]} 45. Rd1 {[%clk 0:00:03]}  Bxd4 {[%clk 0:00:22]} 46. cxd4 {[%clk 0:00:03]}  Rxd4 {[%clk 0:00:21]} 0-1


[Site "https://www.chess.com"]

[Event "Titled Tuesday Blitz April 19 Early 2022"]
[White "Tan, Jun Ying"]
[Black "De Souza, Cristiano Gomes"]
[WhiteFideId "5710413"]
[BlackFideId "2151758"]
[WhiteElo "1827"]
[BlackElo "2068"]
[Result "1-0"]
[Round "01"]
[TimeControl "180+1"]
[Date "2022.04.19"]
[WhiteClock "0:00:36"]
[BlackClock "0:01:00"]

1. d4 {[%clk 0:03:00]}  Nf6 {[%clk 0:02:59]} 2. c4 {[%clk 0:03:01]}  g6 {[%clk 0:02:59]} 3. Nc3 {[%clk 0:03:02]}  Bg7 {[%clk 0:03:00]} 4. e4 {[%clk 0:03:02]}  d6 {[%clk 0:03:00]} 5. Nf3 {[%clk 0:03:03]}  O-O {[%clk 0:03:00]} 6. Be2 {[%clk 0:03:03]}  e5 {[%clk 0:02:59]} 7. O-O {[%clk 0:03:04]}  Nc6 {[%clk 0:02:59]} 8. d5 {[%clk 0:03:05]}  Ne7 {[%clk 0:02:59]} 9. b4 {[%clk 0:03:05]}  Nh5 {[%clk 0:02:55]} 10. Re1 {[%clk 0:03:05]}  f5 {[%clk 0:02:55]} 11. Ng5 {[%clk 0:03:06]}  Nf6 {[%clk 0:02:55]} 12. f3 {[%clk 0:03:06]}  h6 {[%clk 0:02:55]} 13. Ne6 {[%clk 0:03:06]}  Bxe6 {[%clk 0:02:55]} 14. dxe6 {[%clk 0:03:07]}  c6 {[%clk 0:02:55]} 15. b5 {[%clk 0:03:01]}  Kh7 {[%clk 0:02:55]} 16. Ba3 {[%clk 0:02:55]}  c5 {[%clk 0:02:53]} 17. Nd5 {[%clk 0:02:51]}  Ne8 {[%clk 0:02:51]} 18. Qd3 {[%clk 0:02:46]}  Nc7 {[%clk 0:02:51]} 19. Rad1 {[%clk 0:02:36]}  Nexd5 {[%clk 0:02:46]} 20. cxd5 {[%clk 0:02:29]}  a6 {[%clk 0:02:35]} 21. bxa6 {[%clk 0:02:25]}  Rxa6 {[%clk 0:02:33]} 22. Qb3 {[%clk 0:02:24]}  b5 {[%clk 0:02:30]} 23. Bc1 {[%clk 0:02:17]}  c4 {[%clk 0:02:29]} 24. Qb2 {[%clk 0:02:14]}  Ra4 {[%clk 0:02:25]} 25. Be3 {[%clk 0:02:12]}  Qb8 {[%clk 0:02:23]} 26. Rb1 {[%clk 0:02:08]}  Qa8 {[%clk 0:02:17]} 27. Ra1 {[%clk 0:02:04]}  Rb8 {[%clk 0:02:16]} 28. a3 {[%clk 0:02:04]}  Bf6 {[%clk 0:02:14]} 29. Bd2 {[%clk 0:02:00]}  f4 {[%clk 0:02:13]} 30. Bb4 {[%clk 0:01:59]}  Be7 {[%clk 0:02:11]} 31. g3 {[%clk 0:01:52]}  fxg3 {[%clk 0:02:08]} 32. hxg3 {[%clk 0:01:52]}  Nxd5 {[%clk 0:02:09]} 33. exd5 {[%clk 0:01:51]}  Qxd5 {[%clk 0:02:10]} 34. Rad1 {[%clk 0:01:46]}  Qxe6 {[%clk 0:02:09]} 35. Qd2 {[%clk 0:01:42]}  Ra6 {[%clk 0:02:08]} 36. Kg2 {[%clk 0:01:38]}  Rd8 {[%clk 0:02:06]} 37. Qd5 {[%clk 0:01:37]}  Qxd5 {[%clk 0:02:03]} 38. Rxd5 {[%clk 0:01:38]}  Rb8 {[%clk 0:02:01]} 39. Red1 {[%clk 0:01:36]}  Kg7 {[%clk 0:02:01]} 40. f4 {[%clk 0:01:24]}  exf4 {[%clk 0:02:01]} 41. gxf4 {[%clk 0:01:25]}  Kf7 {[%clk 0:02:01]} 42. Bg4 {[%clk 0:01:23]}  Rc6 {[%clk 0:01:59]} 43. Kf3 {[%clk 0:01:22]}  c3 {[%clk 0:01:59]} 44. Rc1 {[%clk 0:01:21]}  c2 {[%clk 0:01:59]} 45. Rd2 {[%clk 0:01:19]}  d5 {[%clk 0:01:53]} 46. Rcxc2 {[%clk 0:01:16]}  Rxc2 {[%clk 0:01:52]} 47. Rxc2 {[%clk 0:01:17]}  Bxb4 {[%clk 0:01:52]} 48. axb4 {[%clk 0:01:16]}  h5 {[%clk 0:01:52]} 49. Bd7 {[%clk 0:01:11]}  Ra8 {[%clk 0:01:50]} 50. Bxb5 {[%clk 0:01:09]}  Ra3+ {[%clk 0:01:50]} 51. Kf2 {[%clk 0:01:03]}  Rb3 {[%clk 0:01:51]} 52. Bc6 {[%clk 0:00:55]}  Rxb4 {[%clk 0:01:48]} 53. Bxd5+ {[%clk 0:00:56]}  Kf6 {[%clk 0:01:49]} 54. Kf3 {[%clk 0:00:55]}  g5 {[%clk 0:01:48]} 55. Rc6+ {[%clk 0:00:52]}  Kg7 {[%clk 0:01:40]} 56. fxg5 {[%clk 0:00:33]}  Rg4 {[%clk 0:01:38]} 57. Rc7+ {[%clk 0:00:32]}  Kg6 {[%clk 0:01:38]} 58. Bf7+ {[%clk 0:00:32]}  Kxg5 {[%clk 0:01:39]} 59. Rc5+ {[%clk 0:00:32]}  Kf6 {[%clk 0:01:38]} 60. Bxh5 {[%clk 0:00:33]}  Rg5 {[%clk 0:01:37]} 61. Rc6+ {[%clk 0:00:33]}  Kg7 {[%clk 0:01:35]} 62. Bg4 {[%clk 0:00:32]}  Rg6 {[%clk 0:01:35]} 63. Rc7+ {[%clk 0:00:32]}  Kh6 {[%clk 0:01:35]} 64. Kf4 {[%clk 0:00:31]}  Rf6+ {[%clk 0:01:34]} 65. Bf5 {[%clk 0:00:31]}  Rg6 {[%clk 0:00:57]} 66. Bxg6 {[%clk 0:00:30]}  Kxg6 {[%clk 0:00:58]} 67. Rc6+ {[%clk 0:00:30]}  Kf7 {[%clk 0:00:58]} 68. Kf5 {[%clk 0:00:30]}  Ke7 {[%clk 0:00:59]} 69. Re6+ {[%clk 0:00:30]}  Kd7 {[%clk 0:00:59]} 70. Ke5 {[%clk 0:00:31]}  Kc7 {[%clk 0:00:59]} 71. Rd6 {[%clk 0:00:31]}  Kc8 {[%clk 0:00:58]} 72. Kd5 {[%clk 0:00:31]}  Kc7 {[%clk 0:00:59]} 73. Kc5 {[%clk 0:00:32]}  Kc8 {[%clk 0:01:00]} 74. Kc6 {[%clk 0:00:32]}  Kb8 {[%clk 0:01:00]} 75. Rd7 {[%clk 0:00:32]}  Kc8 {[%clk 0:01:00]} 76. Kd6 {[%clk 0:00:33]}  Kb8 {[%clk 0:01:00]} 77. Rc7 {[%clk 0:00:34]}  Ka8 {[%clk 0:01:00]} 78. Kc6 {[%clk 0:00:35]}  Kb8 {[%clk 0:01:00]} 79. Kb6 {[%clk 0:00:36]}  Ka8 {[%clk 0:01:00]} 80. Rc8# {[%clk 0:00:36]} 1-0


[Site "https://www.chess.com"]